bitfinex/quotes_BTCUSD_20250212
["timestamp","ask_amount","ask_price","bid_price","bid_amount"]
[1739365062933,0.155905,96212.0,96201.0,0.0004067]
[1739365063103,0.156905,96212.0,96201.0,0.1563297]
[1739365063304,0.157905,96212.0,96202.0,0.04663815]
[1739365063533,0.002,96212.0,96202.0,0.20255915]
[1739365063958,0.002,96212.0,96202.0,0.04663815]
[1739365064134,0.001,96212.0,96202.0,0.04663815]
[1739365064339,0.001,96212.0,96204.0,0.155918]
[1739365064537,0.001,96212.0,96207.0,0.155913]
[1739365065070,0.001,96212.0,96211.0,0.155907]
[1739365065330,0.001,96212.0,96211.0,0.25841065]
[1739365065533,0.002,96212.0,96211.0,0.33501065]
[1739365065732,0.001,96212.0,96211.0,0.43573692]
[1739365065913,0.002,96212.0,96211.0,0.43573692]
[1739365066109,0.001,96212.0,96211.0,0.43573692]
[1739365066781,0.00022408,96224.0,96219.0,0.155894]
[1739365067509,0.00022408,96224.0,96221.0,0.155891]
[1739365067737,0.00022408,96224.0,96222.0,0.0571615]
[1739365068180,0.00022408,96224.0,96223.0,0.155887]
[1739365068382,0.00022408,96224.0,96222.0,0.0571615]
[1739365068559,0.00022408,96224.0,96222.0,0.155889]
[1739365068762,0.00222408,96224.0,96221.0,0.155891]
[1739365069112,0.00222408,96224.0,96218.0,0.20786]
[1739365069315,0.00222408,96224.0,96220.0,0.155892]
[1739365069912,0.00422408,96224.0,96220.0,0.155892]
[1739365070112,0.00222408,96224.0,96221.0,0.03846544]
[1739365070320,0.00022408,96224.0,96221.0,0.03846544]
[1739365070549,0.00222408,96224.0,96223.0,0.155887]
[1739365070750,0.00222408,96224.0,96221.0,0.03846544]
[1739365070967,0.00222408,96224.0,96223.0,0.155887]
[1739365072154,0.00422408,96224.0,96223.0,0.15692614]
[1739365072572,0.00222408,96224.0,96223.0,0.15692614]
[1739365072881,0.00022408,96224.0,96223.0,0.15692614]
[1739365073096,0.00422408,96224.0,96223.0,0.15692614]
[1739365073334,0.00422408,96224.0,96223.0,0.2170585]
[1739365073513,0.00422408,96224.0,96223.0,0.21601936]
[1739365075891,0.00422408,96224.0,96223.0,0.06013236]
[1739365076047,0.00422408,96224.0,96223.0,0.21601936]
[1739365080316,0.00222408,96224.0,96223.0,0.21601936]
[1739365080578,0.00322408,96224.0,96223.0,0.21601936]
[1739365080743,0.00322408,96224.0,96223.0,0.09101936]
[1739365080899,0.00022387,96240.0,96223.0,0.08780588]
[1739365081107,0.155863,96238.0,96225.0,0.207845]
[1739365081329,0.155863,96238.0,96228.0,0.155879]
[1739365081646,0.20803787,96240.0,96228.0,0.155879]
[1739365081826,0.20803787,96240.0,96229.0,0.04515299]
[1739365081989,0.155863,96239.0,96229.0,0.04515299]
[1739365082192,0.155861,96239.0,96229.0,0.04515299]
[1739365082632,0.155861,96239.0,96229.0,0.04559468]
[1739365083071,0.007,96238.0,96229.0,0.04559468]
[1739365083273,0.007,96238.0,96230.0,0.03086498]
[1739365083585,0.004,96239.0,96230.0,0.03086498]
[1739365083763,0.155867,96236.0,96229.0,0.00044169]
[1739365084168,0.155863,96238.0,96229.0,0.00044169]
[1739365084572,0.166862,96239.0,96229.0,0.00044169]
[1739365084974,0.162862,96239.0,96229.0,0.00044169]
[1739365085182,0.155863,96238.0,96230.0,0.03641657]
[1739365085330,0.159863,96238.0,96230.0,0.03641657]
[1739365085730,0.159863,96238.0,96225.0,0.207845]
[1739365086035,0.16230407,96238.0,96228.0,0.155879]
[1739365086232,0.00644107,96238.0,96229.0,0.155878]
[1739365086441,0.01044107,96238.0,96230.0,0.0155878]
[1739365086823,0.00444107,96238.0,96230.0,0.0155878]
[1739365087034,0.01044107,96238.0,96212.0,0.15]
[1739365087213,0.01044107,96238.0,96215.0,0.10250365]
[1739365087214,0.076,96237.0,96215.0,0.10250365]
[1739365087412,0.076,96237.0,96216.0,0.05043668]
[1739365087619,0.155879,96229.0,96216.0,0.05043668]
[1739365087786,0.155879,96229.0,96223.0,0.0001066]
[1739365087952,0.155879,96228.0,96223.0,0.0001066]
[1739365088155,0.076,96237.0,96223.0,0.0001066]
[1739365088403,0.155886,96224.0,96223.0,0.0001066]
[1739365089858,0.156886,96224.0,96223.0,0.0001066]
[1739365090257,0.155886,96224.0,96223.0,0.0001066]
[1739365090658,0.156886,96224.0,96223.0,0.0001066]
[1739365090864,0.155889,96222.0,96211.0,0.17659117]
[1739365091084,0.155891,96221.0,96212.0,0.03844722]
[1739365091838,0.2240249,96224.0,96212.0,0.03844722]
[1739365092042,0.15789,96222.0,96212.0,0.03844722]
[1739365092248,0.15589,96222.0,96212.0,0.03844722]
[1739365092659,0.156891,96221.0,96212.0,0.03844722]
[1739365092842,0.20785,96223.0,96212.0,0.03844722]
[1739365092843,0.15589,96222.0,96212.0,0.03844722]
[1739365093022,0.20785,96223.0,96212.0,0.19435222]
[1739365093239,0.20785,96223.0,96213.0,0.04229144]
[1739365094086,0.001,96221.0,96212.0,0.19435222]
[1739365094285,0.001,96221.0,96212.0,0.155905]
[1739365094490,0.001,96221.0,96213.0,0.155902]
[1739365095188,0.157887,96223.0,96213.0,0.155902]
[1739365095360,0.157887,96223.0,96214.0,0.05923482]
[1739365095595,0.157887,96223.0,96211.0,0.02068417]
[1739365095596,0.002,96223.0,96211.0,0.02068417]
[1739365095804,0.155887,96223.0,96212.0,0.155905]
[1739365096008,0.001,96221.0,96212.0,0.155905]
[1739365096892,0.001,96221.0,96211.0,0.02068417]
[1739365097099,0.001,96221.0,96212.0,0.02285642]
[1739365097300,0.155891,96221.0,96212.0,0.02285642]
[1739365097701,0.002,96223.0,96212.0,0.02285642]
[1739365097902,0.207852,96223.0,96212.0,0.02285642]
[1739365098155,0.155892,96221.0,96212.0,0.02285642]
[1739365098327,0.001,96221.0,96212.0,0.02285642]
[1739365098502,0.001,96221.0,96213.0,0.05026635]
[1739365098702,0.001,96221.0,96212.0,0.17876142]
[1739365099061,0.155887,96224.0,96212.0,0.17876142]
[1739365099285,0.001,96221.0,96212.0,0.17876142]
[1739365099570,0.002,96221.0,96212.0,0.17876142]
[1739365099768,0.002,96221.0,96213.0,0.07105445]
[1739365099904,0.001,96221.0,96213.0,0.07105445]
[1739365100270,0.001,96221.0,96211.0,0.0001067]
[1739365100500,0.155896,96218.0,96211.0,0.0001067]
[1739365100855,0.363757,96218.0,96211.0,0.0001067]
[1739365101015,0.155898,96217.0,96211.0,0.0001067]
[1739365101418,0.155896,96218.0,96211.0,0.0001067]
[1739365102073,0.155899,96217.0,96211.0,0.0001067]
[1739365102289,0.155899,96217.0,96211.0,0.03861641]
[1739365103401,0.001,96217.0,96211.0,0.03861641]
[1739365104191,0.001,96217.0,96211.0,0.0001067]
[1739365104391,0.155903,96214.0,96211.0,0.0001067]
[1739365104793,0.155904,96213.0,96211.0,0.0001067]
[1739365105014,0.289463,96217.0,96211.0,0.0001067]
[1739365105342,0.08,96222.0,96211.0,0.0001067]
[1739365105494,0.001,96214.0,96213.0,0.155904]
[1739365105721,0.001,96214.0,96213.0,0.34074673]
[1739365105919,0.001,96214.0,96213.0,0.25840765]
[1739365106623,0.0754,96229.0,96217.0,0.207863]
[1739365106817,0.0754,96229.0,96225.0,0.155883]
[1739365107246,0.0754,96229.0,96221.0,0.207853]
[1739365107247,0.155872,96233.0,96221.0,0.207853]
[1739365107446,0.155872,96233.0,96227.0,0.155881]
[1739365107604,0.207832,96232.0,96221.0,0.155889]
[1739365107802,0.155882,96227.0,96218.0,0.03210177]
[1739365108082,0.0787,96234.0,96219.0,0.155893]
[1739365108083,0.155883,96226.0,96219.0,0.155893]
[1739365108299,0.155884,96225.0,96218.0,0.155895]
[1739365108842,0.155882,96227.0,96219.0,0.155893]
[1739365109077,0.001,96227.0,96208.0,0.22895935]
[1739365109445,0.001,96227.0,96213.0,0.03716104]
[1739365109848,0.001,96227.0,96223.0,0.155887]
[1739365110237,0.155879,96229.0,96223.0,0.155887]
[1739365110438,0.15588,96228.0,96221.0,0.155889]
[1739365110653,0.0787,96234.0,96213.0,0.03716104]
[1739365110885,0.0806,96222.0,96213.0,0.20787]
[1739365111135,0.155891,96221.0,96214.0,0.155901]
[1739365111352,0.0806,96222.0,96201.0,0.01528569]
[1739365111566,0.0806,96222.0,96212.0,0.155904]
[1739365111772,0.155894,96219.0,96213.0,0.01769833]
[1739365112112,0.0816,96222.0,96211.0,0.0001067]
[1739365112314,0.155896,96218.0,96211.0,0.0001067]
[1739365112721,0.207854,96221.0,96211.0,0.1560127]
[1739365113013,0.155896,96218.0,96211.0,0.0001067]
[1739365113187,0.155896,96218.0,96211.0,0.04169447]
[1739365113349,0.155896,96218.0,96214.0,0.001]
[1739365113567,0.155896,96218.0,96211.0,0.0001067]
[1739365113784,0.1559,96216.0,96211.0,0.0001067]
[1739365113941,0.1559,96216.0,96211.0,0.0011067]
[1739365114149,0.1559,96216.0,96211.0,0.0001067]
[1739365114384,0.09580883,96222.0,96211.0,0.0001067]
[1739365114562,0.233605,96212.0,96211.0,0.0001067]
[1739365116627,0.233605,96212.0,96211.0,0.0011067]
[1739365118016,0.234605,96212.0,96211.0,0.0011067]
[1739365119297,0.282205,96212.0,96211.0,0.0011067]
[1739365120494,0.281205,96212.0,96211.0,0.0001067]
[1739365120937,0.284205,96212.0,96211.0,0.0001067]
[1739365121146,0.40770865,96212.0,96211.0,0.0001067]
[1739365121340,0.41170865,96212.0,96211.0,0.0001067]
[1739365121694,0.5222123,96212.0,96211.0,0.0001067]
[1739365121892,0.41970865,96212.0,96211.0,0.0001067]
[1739365122123,0.56970865,96212.0,96211.0,0.0001067]
[1739365122543,0.56470865,96212.0,96211.0,0.0001067]
[1739365122921,0.56970865,96212.0,96211.0,0.0001067]
[1739365124405,0.56170865,96212.0,96211.0,0.0001067]
[1739365124611,0.6642123,96212.0,96211.0,0.0001067]
[1739365124812,0.6782123,96212.0,96211.0,0.0001067]
[1739365125126,0.6642123,96212.0,96211.0,0.0001067]
[1739365125530,0.6732123,96212.0,96211.0,0.0001067]
[1739365125798,0.6732123,96212.0,96210.0,0.0001066]
[1739365125799,0.155947,96187.0,96174.0,0.08291831]
[1739365125983,0.077,96190.0,96175.0,0.02388943]
[1739365126258,0.207923,96189.0,96175.0,0.02388943]
[1739365126403,0.155948,96186.0,96175.0,0.02388943]
[1739365126605,0.155946,96187.0,96175.0,0.02388943]
[1739365126846,0.155947,96187.0,96176.0,0.0196966]
[1739365127035,0.15938652,96187.0,96176.0,0.0196966]
[1739365127244,0.155947,96186.0,96176.0,0.0196966]
[1739365127807,0.155951,96184.0,96171.0,0.00103968]
[1739365128027,0.155951,96184.0,96170.0,0.0767]
[1739365128513,0.00544052,96187.0,96170.0,0.0767]
[1739365128737,0.155951,96184.0,96170.0,0.0767]
[1739365128899,0.155954,96183.0,96170.0,0.0767]
[1739365129094,0.155959,96180.0,96167.0,0.00103968]
[1739365129342,0.15596,96178.0,96167.0,0.0384541]
[1739365129602,0.155952,96183.0,96167.0,0.0384541]
[1739365130022,0.155954,96182.0,96167.0,0.0384541]
[1739365130223,0.207933,96185.0,96167.0,0.0384541]
[1739365130421,0.15595,96185.0,96168.0,0.00103968]
[1739365130685,0.00544052,96187.0,96168.0,0.05171354]
[1739365130887,0.207934,96185.0,96168.0,0.05171354]
[1739365131285,0.210934,96185.0,96168.0,0.05171354]
[1739365131493,0.155953,96183.0,96168.0,0.05171354]
[1739365131713,0.210934,96185.0,96168.0,0.05171354]
[1739365132006,0.00044052,96187.0,96168.0,0.05171354]
[1739365132007,0.155956,96181.0,96169.0,0.05189603]
[1739365132140,0.207939,96182.0,96165.0,0.00103968]
[1739365132342,0.209939,96182.0,96165.0,0.00103968]
[1739365132577,0.155959,96179.0,96165.0,0.00103968]
[1739365132777,0.155959,96179.0,96164.0,0.082]
[1739365132945,0.207941,96181.0,96164.0,0.18450365]
[1739365133141,0.207941,96181.0,96165.0,0.04470167]
[1739365133370,0.15596,96178.0,96165.0,0.04470167]
[1739365133543,0.207941,96181.0,96165.0,0.04470167]
[1739365134077,0.15596,96178.0,96165.0,0.04470167]
[1739365134291,0.155964,96176.0,96166.0,0.04060801]
[1739365134884,0.001,96178.0,96164.0,0.18450365]
[1739365135110,0.155967,96175.0,96164.0,0.18554334]
[1739365135391,0.20795,96177.0,96164.0,0.10250365]
[1739365135641,0.0782,96175.0,96164.0,0.10250365]
[1739365135843,0.0468,96177.0,96164.0,0.10250365]
[1739365136046,0.0468,96177.0,96164.0,0.11275402]
[1739365136259,0.155966,96175.0,96164.0,0.11275402]
[1739365136451,0.207944,96180.0,96164.0,0.11275402]
[1739365136659,0.0782,96181.0,96164.0,0.11275402]
[1739365136660,0.001,96176.0,96164.0,0.11275402]
[1739365136796,0.001,96176.0,96165.0,0.00103968]
[1739365137004,0.001,96176.0,96166.0,0.01137937]
[1739365137219,0.155964,96177.0,96166.0,0.01137937]
[1739365137806,0.155963,96177.0,96166.0,0.01137937]
[1739365137989,0.001,96175.0,96166.0,0.01137937]
[1739365138489,0.155955,96181.0,96166.0,0.01241906]
[1739365138846,0.15596,96179.0,96167.0,0.04789973]
[1739365139047,0.207932,96185.0,96167.0,0.04893942]
[1739365139257,0.0465,96186.0,96164.0,0.10250365]
[1739365139258,0.155958,96180.0,96168.0,0.00103968]
[1739365139481,0.155958,96180.0,96164.0,0.10250365]
[1739365139482,0.207934,96184.0,96165.0,0.00103969]
[1739365139691,0.15596,96179.0,96165.0,0.00103969]
[1739365139999,0.001,96177.0,96166.0,0.02806988]
[1739365140185,0.156963,96177.0,96166.0,0.02806988]
[1739365140366,0.15596,96179.0,96166.0,0.02806988]
[1739365140744,0.207936,96183.0,96166.0,0.02806988]
[1739365140955,0.155962,96177.0,96167.0,0.00103968]
[1739365141168,0.155964,96176.0,96168.0,0.01316132]
[1739365141362,0.207939,96182.0,96168.0,0.01316132]
[1739365141568,0.15696,96179.0,96168.0,0.01316132]
[1739365142064,0.002,96179.0,96168.0,0.01316132]
[1739365142292,0.155962,96178.0,96169.0,0.01167047]
[1739365143157,0.001,96179.0,96164.0,0.10354334]
[1739365143158,0.001,96179.0,96164.0,0.10250365]
[1739365143385,0.155976,96169.0,96160.0,0.0001066]
[1739365143781,0.207958,96173.0,96160.0,0.0001066]
[1739365143982,0.155983,96164.0,96160.0,0.0001066]
[1739365144191,0.0465,96173.0,96160.0,0.0001066]
[1739365144395,0.155988,96161.0,96160.0,0.0001066]
[1739365145986,0.158988,96161.0,96160.0,0.0001066]
[1739365147190,0.34379165,96161.0,96160.0,0.0001066]
[1739365147394,0.34779165,96161.0,96160.0,0.0001066]
[1739365149375,0.36252002,96161.0,96160.0,0.0001066]
[1739365150682,0.162988,96161.0,96160.0,0.0001066]
[1739365150889,0.007,96161.0,96160.0,0.0001066]
[1739365151518,0.162988,96161.0,96160.0,0.0001066]
[1739365152709,0.16402773,96161.0,96160.0,0.0001066]
[1739365153246,0.39583138,96161.0,96160.0,0.0001066]
[1739365153448,0.41779165,96161.0,96160.0,0.0001066]
[1739365154175,0.49557612,96161.0,96160.0,0.0001066]
[1739365154578,0.41579165,96161.0,96160.0,0.0001066]
[1739365154798,0.42079165,96161.0,96160.0,0.0001066]
[1739365155231,0.41579165,96161.0,96160.0,0.0001066]
[1739365155840,0.41079165,96161.0,96160.0,0.0001066]
[1739365156287,0.285288,96161.0,96160.0,0.0001066]
[1739365156726,0.295288,96161.0,96160.0,0.0001066]
[1739365156930,0.1393,96161.0,96131.0,0.08291831]
[1739365157058,0.156006,96150.0,96140.0,0.156022]
[1739365157531,0.14551333,96160.0,96135.0,0.20804]
[1739365157819,0.156007,96150.0,96138.0,0.156024]
[1739365158116,0.156011,96147.0,96134.0,0.32675748]
[1739365158265,0.156011,96147.0,96135.0,0.01979155]
[1739365158467,0.008,96150.0,96142.0,0.156019]
[1739365158678,0.008,96150.0,96136.0,0.208038]
[1739365158679,0.005,96150.0,96140.0,0.15602]
[1739365158879,0.161007,96150.0,96137.0,0.04258774]
[1739365159077,0.164007,96150.0,96139.0,0.156022]
[1739365159277,0.164007,96150.0,96137.0,0.04258774]
[1739365159516,0.164007,96150.0,96140.0,0.156022]
[1739365159725,0.159006,96150.0,96141.0,0.04881616]
[1739365159902,0.156012,96146.0,96141.0,0.04881616]
[1739365160436,0.156011,96147.0,96137.0,0.19861374]
[1739365160642,0.156013,96146.0,96137.0,0.04258774]
[1739365161223,0.158013,96146.0,96137.0,0.04258774]
[1739365161401,0.156013,96146.0,96137.0,0.04258774]
[1739365161843,0.002,96146.0,96137.0,0.04258774]
[1739365162039,0.002,96146.0,96138.0,0.0452362]
[1739365162240,0.158013,96146.0,96138.0,0.0452362]
[1739365163532,0.002,96146.0,96138.0,0.0452362]
[1739365163930,0.290003,96153.0,96136.0,0.156028]
[1739365164135,0.002,96146.0,96136.0,0.156028]
[1739365164334,0.004,96146.0,96136.0,0.156028]
[1739365164533,0.002,96146.0,96134.0,0.10274274]
[1739365164754,0.082,96153.0,96137.0,0.156025]
[1739365164954,0.004,96146.0,96138.0,0.156025]
[1739365165132,0.002,96146.0,96137.0,0.156026]
[1739365165633,0.002,96146.0,96138.0,0.156025]
[1739365165840,0.002,96146.0,96139.0,0.07267385]
[1739365166054,0.002,96146.0,96135.0,0.00052027]
[1739365166423,0.208006,96151.0,96138.0,0.156025]
[1739365166623,0.156009,96149.0,96138.0,0.156025]
[1739365166917,0.002,96146.0,96138.0,0.156025]
[1739365167291,0.158014,96146.0,96135.0,0.156029]
[1739365167476,0.002,96146.0,96136.0,0.156028]
[1739365167677,0.006,96151.0,96135.0,0.06748687]
[1739365167900,0.156007,96150.0,96138.0,0.156024]
[1739365168099,0.208005,96152.0,96138.0,0.156024]
[1739365168100,0.159008,96149.0,96138.0,0.156024]
[1739365168303,0.156009,96148.0,96137.0,0.156027]
[1739365168512,0.002,96146.0,96137.0,0.05188277]
[1739365168684,0.002,96146.0,96140.0,0.156021]
[1739365168685,0.004,96146.0,96140.0,0.156021]
[1739365168885,0.004,96146.0,96138.0,0.208034]
[1739365169092,0.002,96146.0,96141.0,0.15602]
[1739365169286,0.002,96146.0,96138.0,0.208034]
[1739365169492,0.002,96146.0,96139.0,0.03107767]
[1739365169714,0.208005,96152.0,96134.0,0.10274274]
[1739365169887,0.159009,96149.0,96137.0,0.156026]
[1739365170222,0.156009,96148.0,96137.0,0.156026]
[1739365170397,0.156009,96148.0,96135.0,0.20804]
[1739365170398,0.156011,96147.0,96138.0,0.00613867]
[1739365170587,0.156011,96147.0,96135.0,0.15603]
[1739365170780,0.156011,96147.0,96136.0,0.07362882]
[1739365170980,0.156013,96146.0,96136.0,0.00614225]
[1739365171252,0.156014,96145.0,96136.0,0.00614225]
[1739365171459,0.002,96146.0,96134.0,0.10274274]
[1739365171658,0.02338284,96148.0,96137.0,0.00614046]
[1739365171859,0.156018,96143.0,96134.0,0.00023909]
[1739365172114,0.156018,96143.0,96135.0,0.03643241]
[1739365172324,0.156019,96142.0,96135.0,0.04256985]
[1739365172564,0.208021,96144.0,96135.0,0.00613744]
[1739365173038,0.156017,96143.0,96134.0,0.00023909]
[1739365173288,0.156021,96141.0,96134.0,0.00023909]
[1739365173537,0.156021,96141.0,96135.0,0.04257055]
[1739365174444,0.01938284,96140.0,96135.0,0.04257055]
[1739365174642,0.17540484,96140.0,96135.0,0.04257055]
[1739365175255,0.01938284,96140.0,96135.0,0.03643311]
[1739365175601,0.01938284,96140.0,96134.0,0.00023909]
[1739365175822,0.01938284,96139.0,96136.0,0.00613565]
[1739365176015,0.01938284,96139.0,96135.0,0.00613744]
[1739365176235,0.01938284,96139.0,96137.0,0.00613386]
[1739365176521,0.01938284,96139.0,96136.0,0.00613565]
[1739365176676,0.01938284,96139.0,96134.0,0.00023909]
[1739365176884,0.01938284,96139.0,96137.0,0.00613386]
[1739365177137,0.01938284,96138.0,96135.0,0.03643291]
[1739365177757,0.01938284,96138.0,96134.0,0.00023909]
[1739365178056,0.01938284,96137.0,96134.0,0.00023909]
[1739365178668,0.01938284,96137.0,96136.0,0.156028]
[1739365178975,0.01938284,96137.0,96136.0,0.15654854]
[1739365179165,0.01938284,96137.0,96136.0,0.19251086]
[1739365179365,0.156006,96150.0,96140.0,0.156022]
[1739365180101,0.208005,96152.0,96136.0,0.03648286]
[1739365180315,0.208005,96152.0,96140.0,0.156022]
[1739365180537,0.048,96149.0,96136.0,0.03648286]
[1739365180738,0.156024,96139.0,96134.0,0.00023909]
[1739365180873,0.0751,96148.0,96134.0,0.00023909]
[1739365181073,0.156022,96141.0,96134.0,0.00023909]
[1739365181490,0.156022,96140.0,96134.0,0.00023909]
[1739365181846,0.156024,96139.0,96134.0,0.00023909]
[1739365182031,0.208027,96142.0,96134.0,0.00023909]
[1739365182268,0.15603,96136.0,96134.0,0.00023909]
[1739365182755,0.156026,96138.0,96134.0,0.00023909]
[1739365183100,0.156025,96138.0,96134.0,0.00023909]
[1739365183333,0.156025,96138.0,96135.0,0.00444364]
[1739365183714,0.001,96136.0,96134.0,0.00023909]
[1739365184272,0.27963,96135.0,96134.0,0.00023909]
[1739365185789,0.416084,96134.0,96114.0,0.208086]
[1739365185995,0.14551333,96130.0,96125.0,4.415e-05]
[1739365186256,0.156045,96126.0,96125.0,4.415e-05]
[1739365186788,0.208053,96129.0,96125.0,4.415e-05]
[1739365186916,0.1276,96135.0,96072.0,0.04877225]
[1739365186917,0.23578,96104.0,96072.0,0.04877225]
[1739365187124,0.15608,96104.0,96103.0,0.09352386]
[1739365187326,0.126,96115.0,96103.0,0.09801997]
[1739365187584,0.156074,96108.0,96103.0,0.10782197]
[1739365187711,0.156067,96113.0,96103.0,0.10782197]
[1739365187916,0.0779,96127.0,96103.0,0.10782197]
[1739365187917,0.002,96126.0,96103.0,0.18292197]
[1739365188185,0.002,96126.0,96104.0,0.10250365]
[1739365188389,0.156051,96122.0,96110.0,0.15607]
[1739365188509,0.004,96115.0,96111.0,0.04666727]
[1739365188718,0.156053,96121.0,96111.0,0.05121359]
[1739365188915,0.002,96126.0,96111.0,0.05121359]
[1739365189192,0.156057,96119.0,96111.0,0.00454632]
[1739365189395,0.156057,96119.0,96108.0,0.156074]
[1739365189523,0.001,96115.0,96112.0,0.00454585]
[1739365189876,0.001,96115.0,96113.0,0.00454537]
[1739365190215,0.001,96115.0,96107.0,0.156075]
[1739365190389,0.001,96115.0,96114.0,0.0045449]
[1739365190536,0.001,96115.0,96107.0,0.32916223]
[1739365190737,0.285959,96127.0,96107.0,0.17308723]
[1739365190952,0.156049,96124.0,96110.0,0.208092]
[1739365191155,0.160046,96126.0,96113.0,0.156066]
[1739365191449,0.004,96126.0,96111.0,0.00454632]
[1739365191670,0.156044,96127.0,96116.0,0.156061]
[1739365191873,0.005,96127.0,96116.0,0.00052099]
[1739365192090,0.156043,96127.0,96117.0,0.02585887]
[1739365192347,0.0479,96129.0,96117.0,0.00454348]
[1739365192548,0.004,96126.0,96117.0,0.00454348]
[1739365192749,0.208038,96137.0,96117.0,0.20859776]
[1739365192954,0.208032,96139.0,96118.0,0.04621179]
[1739365193089,0.006,96127.0,96121.0,0.156052]
[1739365193289,0.006,96127.0,96122.0,0.156051]
[1739365193497,0.156028,96137.0,96122.0,0.16056855]
[1739365193930,0.013,96137.0,96122.0,0.00451755]
[1739365194598,0.004,96127.0,96120.0,0.04213595]
[1739365194736,0.156033,96133.0,96121.0,0.03269982]
[1739365195118,0.156033,96133.0,96121.0,0.03721785]
[1739365195440,0.333431,96140.0,96121.0,0.03269982]
[1739365195664,0.002,96127.0,96122.0,0.00451755]
[1739365195898,0.002,96127.0,96115.0,0.156061]
[1739365196118,0.156035,96132.0,96116.0,0.10250365]
[1739365196439,0.007,96133.0,96116.0,0.10250365]
[1739365196633,0.163034,96133.0,96116.0,0.10250365]
[1739365196833,0.208042,96135.0,96116.0,0.10250365]
[1739365197035,0.00022408,96137.0,96116.0,0.10250365]
[1739365197242,0.003,96127.0,96116.0,0.10250365]
[1739365198065,0.159044,96127.0,96116.0,0.10250365]
[1739365198273,0.159044,96127.0,96117.0,0.01102503]
[1739365198588,0.158044,96127.0,96117.0,0.01102503]
[1739365199084,0.156045,96126.0,96117.0,0.01102503]
[1739365199804,0.156044,96127.0,96117.0,0.01102503]
[1739365200218,0.158044,96127.0,96117.0,0.01102503]
[1739365200501,0.002,96127.0,96113.0,0.0001067]
[1739365200703,0.004,96127.0,96113.0,0.0001067]
[1739365200865,0.156051,96123.0,96113.0,0.0001067]
[1739365201390,0.156052,96122.0,96113.0,0.0001067]
[1739365201769,0.0772,96123.0,96113.0,0.0001067]
[1739365202381,0.0782,96123.0,96113.0,0.01572497]
[1739365202601,0.0782,96123.0,96113.0,0.0001067]
[1739365202946,0.156051,96122.0,96113.0,0.0001067]
[1739365203359,0.0782,96123.0,96113.0,0.0001067]
[1739365203902,0.001,96123.0,96113.0,0.0001067]
[1739365204250,0.001,96123.0,96114.0,0.030169]
[1739365204429,0.001,96123.0,96113.0,0.0001067]
[1739365204638,0.001,96123.0,96113.0,0.1561707]
[1739365204848,0.001,96123.0,96114.0,0.10250365]
[1739365205197,0.156035,96132.0,96114.0,0.25856665]
[1739365205321,0.156033,96134.0,96114.0,0.25856665]
[1739365205523,0.001,96123.0,96114.0,0.10250365]
[1739365205727,0.001,96123.0,96115.0,0.156062]
[1739365205977,0.001,96123.0,96113.0,0.0001067]
[1739365206350,0.001,96123.0,96115.0,0.156062]
[1739365206561,0.001,96123.0,96116.0,0.156061]
[1739365207028,0.001,96123.0,96113.0,0.2081937]
[1739365207225,0.001,96123.0,96122.0,0.204051]
[1739365207364,0.00022408,96137.0,96122.0,0.204051]
[1739365207365,0.00022408,96137.0,96133.0,0.156033]
[1739365207567,0.00022408,96137.0,96122.0,0.15050365]
[1739365207568,0.00022408,96137.0,96134.0,0.156031]
[1739365207777,0.00022408,96137.0,96135.0,0.0156031]
[1739365208183,0.00022408,96137.0,96122.0,0.06902574]
[1739365208384,0.001,96123.0,96113.0,0.1561717]
[1739365208595,0.001,96123.0,96113.0,0.00023937]
[1739365208802,0.156053,96121.0,96113.0,0.00023937]
[1739365209081,0.156055,96120.0,96113.0,0.00023937]
[1739365209256,0.001,96123.0,96113.0,0.00023937]
[1739365209257,0.00230041,96123.0,96113.0,0.00023937]
[1739365209461,0.156064,96114.0,96113.0,0.00023937]
[1739365209656,0.0801,96114.0,96113.0,0.00023937]
[1739365210867,0.0811,96114.0,96113.0,0.00023937]
[1739365213668,0.1295,96114.0,96113.0,0.00023937]
[1739365214110,0.1285,96114.0,96113.0,0.00023937]
[1739365214361,0.23430418,96114.0,96113.0,0.00023937]
[1739365214498,0.23300365,96114.0,96113.0,0.00023937]
[1739365214937,0.23200365,96114.0,96113.0,0.00023937]
[1739365215550,0.23400365,96114.0,96113.0,0.00023937]
[1739365216097,0.32784627,96114.0,96113.0,0.00023937]
[1739365216269,0.48391027,96114.0,96113.0,0.00023937]
[1739365216535,0.41306765,96114.0,96113.0,0.00023937]
[1739365216717,0.40307366,96114.0,96113.0,0.00023937]
[1739365216910,0.40207366,96114.0,96113.0,0.00023937]
[1739365217250,0.40107366,96114.0,96113.0,0.00023937]
[1739365217454,0.40307366,96114.0,96113.0,0.00023937]
[1739365220044,0.40329774,96114.0,96113.0,0.00023937]
[1739365221228,0.48524351,96114.0,96113.0,0.00023937]
[1739365222012,0.40329774,96114.0,96113.0,0.00023937]
[1739365227604,0.40229774,96114.0,96113.0,0.00023937]
[1739365227841,0.58929774,96114.0,96113.0,0.00023937]
[1739365228022,0.58729774,96114.0,96113.0,0.00023937]
[1739365228363,0.59429774,96114.0,96113.0,0.00023937]
[1739365228608,0.69534351,96114.0,96113.0,0.00023937]
[1739365228981,0.61363894,96114.0,96113.0,0.00023937]
[1739365229410,0.59963894,96114.0,96113.0,0.00023937]
[1739365229563,0.61363894,96114.0,96113.0,0.00023937]
[1739365230801,0.59429774,96114.0,96113.0,0.00023937]
[1739365233026,0.57129774,96114.0,96113.0,0.00023937]
[1739365235896,0.57129774,96114.0,96092.0,7e-05]
[1739365235897,0.15,96113.0,96076.0,0.208168]
[1739365236073,0.156103,96091.0,96078.0,0.15866591]
[1739365236293,0.20814,96089.0,96078.0,0.06322456]
[1739365236622,0.238121,96079.0,96078.0,0.00717704]
[1739365236977,0.238121,96079.0,96078.0,0.00011474]
[1739365237999,0.241121,96079.0,96078.0,0.00011474]
[1739365238203,0.38962465,96079.0,96078.0,0.00011474]
[1739365238408,0.41262465,96079.0,96078.0,0.00011474]
[1739365238816,0.42579116,96079.0,96078.0,0.00011474]
[1739365239389,0.51000158,96079.0,96078.0,0.00011474]